[Event "Paracin Open 2022"]
[Site "Paracin"]
[Date "2022.07.09"]
[Round "2.5"]
[White "Arpita, Mukherjee"]
[Black "Zanan, Evgeny"]
[Result "1-0"]
[ECO "C87"]
[WhiteElo "2281"]
[BlackElo "2521"]
[Annotator "TA"]
[PlyCount "139"]
[EventDate "2022.07.08"]
[EventCountry "SRB"]
[SourceTitle "playchess.com"]
[Source "ChessBase"]
[SourceQuality "1"]
[TimeControl "5400+30"]

{[%evp 20,139,27,25,27,29,70,70,70,70,75,66,90,48,37,27,20,0,0,-7,-7,-11,24,0,0,0,0,0,0,0,3,-12,11,14,21,20,27,0,24,22,22,21,31,20,25,28,183,175,175,84,84,86,70,64,66,62,69,-1675,165,113,128,-8,42,-210,66,59,91,8,8,8,10,8,118,118,118,111,111,111,111,111,111,111,111,111,111,111,111,111,111,111,111,111,111,111,111,111,111,111,111,111,111,43,43,43,43,8,7,8,8,0,6070,8,8,0,5700,4666,1494,1299,1237,1088,1047,810]} 1. e4 {[%emt 0:00:38]} e5 {[%emt 0:00:15]} 2. Nf3 {[%emt 0:00:22]} Nc6 {[%emt 0:00:16]} 3. Bb5 {[%emt 0:01:04]} a6 {[%emt 0:00:19]} 4. Ba4 {[%emt 0:00:16]} Nf6 {[%emt 0:00:07]} 5. d3 {[%emt 0:00:20]} d6 {[%emt 0:00:11]} 6. c3 {[%emt 0:00:47]} Be7 {[%emt 0:00:10]} 7. O-O {[%emt 0:01:15]} O-O {[%emt 0:00:09]} 8. Re1 {[%emt 0:02:29]} Re8 {[%emt 0:00:11]} 9. Nbd2 {[%emt 0:00:22]} Bf8 {[%emt 0:00:06]} 10. h3 {[%emt 0:00:41]} b5 {[%emt 0:04:25]} 11. Bc2 {[%emt 0:00:47]} Bb7 {[%emt 0:03:36] C87: Closed Ruy Lopez: Steinitz-type lines after 6 Re1 d6.} 12. a4 {[%emt 0:00:29]} g6 {[%emt 0:03:53] [#]} 13. b4 $146 {[%emt 0:03:44]} ({Predecessor:} 13. Nf1 Nh5 14. Ne3 Nf4 15. g3 Ne6 16. b4 Bg7 17. Bb3 Ne7 18. Qc2 c6 19. Qa2 {0-1 (41) Svana,P (2294)-Motycakova,M (2132) Slovakia 2012}) 13... Bg7 {[%emt 0:10:36] White is slightly better.} 14. Nb3 {[%emt 0:12:17]} Nd7 {[%emt 0:11:15]} 15. Bg5 {[%emt 0:06:50]} f6 {[%emt 0:13:05]} 16. Bh4 {[%emt 0:05:36]} Nb6 {[%emt 0:10:11]} 17. Na5 {[%emt 0:11:27]} Nxa5 {[%emt 0:01:10]} 18. bxa5 {[%emt 0:00:03]} (18. axb5 {is more complex.} axb5 19. bxa5 Nd7 20. Qb1) 18... Nxa4 {[%emt 0:05:04]} 19. Bxa4 {[%emt 0:00:22]} bxa4 {[%emt 0:00:05]} 20. Qxa4 {[%emt 0:00:24] aiming for Qb3+.} Kh8 {[%emt 0:11:36]} (20... Bc8 {keeps more tension.} 21. d4 Qe7 22. Qc4+ Be6) 21. Rab1 {[%emt 0:04:48]} Bc8 {[%emt 0:04:33]} 22. d4 {[%emt 0:04:33]} Bd7 {[%emt 0:02:26]} 23. Qc2 {[%emt 0:00:22]} g5 {[%emt 0:05:02]} 24. Bg3 {[%emt 0:00:26]} Rf8 {[%emt 0:00:38]} 25. Rbd1 {[%emt 0:08:10]} Qe8 {[%emt 0:02:27] Threatens to win with ...Ba4.} 26. Qd3 {[%emt 0:04:23]} g4 {[%emt 0:03:39]} 27. hxg4 {[%emt 0:09:35]} Bxg4 {[%emt 0:00:06]} 28. Rb1 {[%emt 0:05:07]} f5 {[%emt 0:00:53]} 29. Nh2 {[%emt 0:00:13]} fxe4 {[%emt 0:00:45]} 30. Qc4 {[%emt 0:00:13]} Bf5 {[%emt 0:04:35][%cal Oe4e3]} 31. Rb7 {[%emt 0:00:28]} exd4 {[%emt 0:02:23]} 32. cxd4 {[%emt 0:00:34]} c6 $2 {[%emt 0:01:51]} (32... Qf7 $11 33. Qxc7 Qxc7 34. Rxc7 d5) 33. Bxd6 $18 {[%emt 0:00:51]} Rg8 {[%emt 0:00:01]} 34. Nf3 {[%emt 0:11:41]} (34. Qc5 $18 {has better winning chances.} Qg6 35. Nf1) 34... Be6 $16 {[%emt 0:00:21] [#]} 35. Qxe6 {[%emt 0:00:23] 0x0.001b688dc7b8dp-1022s more active pieces.} Qxe6 {[%emt 0:00:14] [#]} 36. Ng5 $1 {[%emt 0:00:03][%csl LRe4,LRe6]} Qd5 {[%emt 0:01:21]} (36... Ra7 $2 37. Rxa7 (37. Nxe6 Rxb7 38. Rc1 Rc8 $17) 37... Qg6 38. Nf7+ Qxf7 39. Rxf7 $18) (36... Qf6 37. Nf7+) 37. Nf7+ {[%emt 0:00:06]} Qxf7 {[%emt 0:00:05]} 38. Rc7 {[%emt 0:07:21][%mdl 8192]} (38. Rxf7 $14 Bxd4 39. Rxe4) 38... Qe7 $4 {[%mdl 8192]} 39. Rxe7 {[%emt 0:00:00]} (39. Bxe7 $18 Bxd4 40. Rxe4) 39... Bxd4 {[%emt 0:01:21]} 40. Rf7 {[%emt 0:00:00]} (40. R1xe4 $16 Bb2 41. Rc7) 40... Rg7 (40... Rae8 $11) 41. Rxe4 $2 {[%emt 0:00:00][%mdl 8192]} Ba1 $2 {[%emt 0:01:01]} (41... Rxf7 $19 42. Rxd4 Rf5) 42. Rf3 {[%emt 0:00:00]} Rd7 {[%emt 0:00:10]} 43. Ra4 {[%emt 0:00:00]} (43. Bc5 $16) 43... Rxd6 $11 44. Rxa1 {[%emt 0:00:00][%mdl 4096] Endgame KRR-KRR} Rc8 {[%emt 0:01:58]} 45. Rb1 Rcd8 {[%emt 0:00:00]} (45... c5 $11) 46. Rb6 $16 {[%emt 0:01:25]} c5 {[%emt 0:00:03][%cal Bc6c5,Bc5c4,Bc4c3][%mdl 32] [#]} 47. Rf8+ $3 {[%emt 0:01:05][%mdl 512]} Rxf8 {[%emt 0:00:44]} 48. Rxd6 {[%emt 0:00:01] KR-KR} c4 {[%emt 0:00:07]} 49. Rxa6 {[%emt 0:01:13]} Rc8 {[%emt 0:00:05]} 50. Rb6 {[%emt 0:00:21]} c3 {[%emt 0:00:04] ( -> ...c2)} 51. Rb1 {[%emt 0:00:04]} c2 {[%emt 0:00:29]} 52. Rc1 {[%emt 0:00:01]} Kg7 {[%emt 0:00:01]} 53. a6 {[%emt 0:00:41]} Kg6 {[%emt 0:00:12]} 54. a7 {[%emt 0:00:13][%cal Oc1c2] Hoping for Rxc2!} Ra8 {[%emt 0:00:03]} 55. Rxc2 {[%emt 0:00:05]} Rxa7 {[%emt 0:00:03]} 56. Kh2 {[%emt 0:00:07]} Ra4 {[%emt 0:00:13]} 57. Kg3 {[%emt 0:00:07]} h5 {[%emt 0:00:30]} 58. Rc6+ {[%emt 0:00:29]} Kg5 {[%emt 0:00:18]} 59. Rc5+ {[%emt 0:00:03]} Kg6 {[%emt 0:00:04]} 60. f4 {[%emt 0:00:19]} (60. Rd5 $16) 60... Rb4 $14 {[%emt 0:00:51]} 61. Rg5+ {[%emt 0:00:39]} Kh6 $1 {[%emt 0:00:07]} 62. Kf3 {[%emt 0:00:18]} Rb3+ {[%emt 0:00:11]} 63. Kf2 {[%emt 0:00:22]} Rb2+ {[%emt 0:00:38]} 64. Kg3 {[%emt 0:00:15] Black must now prevent Kh4.} Rb3+ $2 {[%emt 0:00:02][%mdl 8192]} (64... Rb4 $11) 65. Kh2 $2 {[%emt 0:00:05]} ({White must play} 65. Kh4 $18 Rb4 66. g3) 65... Rb4 $11 {[%emt 0:02:32]} 66. Kg3 $2 {[%emt 0:00:44][%mdl 8192]} (66. g3 $11) 66... Rb3+ $18 {[%emt 0:00:41]} 67. Kh4 {[%emt 0:00:15] White is clearly winning.} Rb2 {[%emt 0:01:18]} 68. Rxh5+ {[%emt 0:00:20]} Kg6 {[%emt 0:00:03]} 69. Rg5+ {[%emt 0:00:05]} Kf6 {[%emt 0:00:04]} 70. Kg3 {[%emt 0:00:21] Weighted Error Value: White=0.37/Black=0.38} 1-0

[Event "Paracin Open 2022"]
[Site "Paracin"]
[Date "2022.07.09"]
[Round "2.6"]
[White "Antova, Gabriela"]
[Black "Pranav Vijay"]
[Result "0-1"]
[ECO "E10"]
[WhiteElo "2275"]
[BlackElo "2265"]
[Annotator "RC"]
[PlyCount "104"]
[EventDate "2022.07.08"]
[EventCountry "SRB"]
[SourceTitle "playchess.com"]
[Source "ChessBase"]
[SourceQuality "1"]
[TimeControl "5400+30"]

1. d4 {[%emt 0:00:07]} Nf6 {[%emt 0:00:11]} 2. c4 {[%emt 0:00:11]} e6 {[%emt 0:00:06]} 3. Nf3 {[%emt 0:00:08]} Nc6 {[%emt 0:00:11]} 4. Bf4 {[%emt 0:10:55]} Bb4+ {[%emt 0:08:16]} 5. Nbd2 {[%emt 0:01:31]} d6 {[%emt 0:02:27]} 6. a3 {[%emt 0:05:50]} Bxd2+ {[%emt 0:00:10]} 7. Qxd2 {[%emt 0:00:05]} Qe7 {[%emt 1:22:39]} 8. h3 {[%emt 0:14:54]} e5 {[%emt 0:00:00]} 9. Bh2 {[%emt 0:00:53]} O-O {[%emt 0:00:00]} 10. d5 {[%emt 0:11:21]} Nb8 {[%emt 0:00:00]} 11. e3 {[%emt 0:01:20]} a5 {[%emt 0:00:00]} 12. b3 {[%emt 0:00:42]} Nbd7 {[%emt 0:00:00]} 13. Be2 {[%emt 0:01:23]} Nc5 {[%emt 0:00:00]} 14. Qc2 {[%emt 0:06:12]} Nfe4 {[%emt 0:00:00]} 15. O-O {[%emt 0:01:30]} Bf5 {[%emt 0:00:00]} 16. Qb2 {[%emt 0:04:10]} Bg6 {[%emt 0:00:00]} 17. Ne1 {[%emt 0:07:25]} c6 {[%emt 0:00:00]} 18. f3 {[%emt 0:04:29]} Nf6 {[%emt 0:00:00]} 19. Rd1 {[%emt 0:04:29]} cxd5 {[%emt 0:00:00]} 20. cxd5 {[%emt 0:00:09]} Qc7 {[%emt 0:00:00]} 21. Kh1 {[%emt 0:04:52]} Rac8 {[%emt 0:00:00]} 22. e4 {[%emt 0:04:25]} Qb6 {[%emt 0:00:00]} 23. Rb1 {[%emt 0:01:02]} Nxd5 {[%emt 0:00:00]} 24. Bg1 {[%emt 0:04:03]} Nf4 {[%emt 0:00:00]} 25. b4 {[%emt 0:02:52]} axb4 {[%emt 0:00:00]} 26. axb4 {[%emt 0:00:10]} Nxe2 {[%emt 0:00:00]} 27. Qxe2 {[%emt 0:02:09]} Qa6 {[%emt 0:00:00]} 28. Qxa6 {[%emt 0:01:01]} Nxa6 {[%emt 0:00:00]} 29. Nd3 {[%emt 0:00:36]} f5 {[%emt 0:00:00]} 30. exf5 {[%emt 0:01:27]} Bxf5 {[%emt 0:00:00]} 31. Rb3 {[%emt 0:00:33]} Nc7 {[%emt 0:00:00]} 32. Ra1 {[%emt 0:02:35]} Nb5 {[%emt 0:00:00]} 33. Ra5 {[%emt 0:02:51]} Bd7 {[%emt 0:00:00]} 34. Be3 {[%emt 0:00:28]} Rc2 {[%emt 0:00:00]} 35. Nf2 {[%emt 0:00:26]} Bc6 {[%emt 0:00:00]} 36. Ra1 {[%emt 0:00:27]} h6 {[%emt 0:00:00]} 37. Bb6 {[%emt 0:00:30]} Rf4 {[%emt 0:00:00]} 38. Kg1 {[%emt 0:00:41]} Rfc4 {[%emt 0:00:00]} 39. Ng4 {[%emt 0:00:16]} Rc1+ {[%emt 0:00:00]} 40. Rxc1 {[%emt 0:00:04]} Rxc1+ {[%emt 0:00:00]} 41. Kf2 {[%emt 0:00:06]} Rc2+ {[%emt 0:00:00]} 42. Kg3 {[%emt 0:00:29]} Kf7 {[%emt 0:00:00]} 43. Ne3 {[%emt 0:00:15]} Re2 {[%emt 0:00:00]} 44. Rd3 {[%emt 0:01:06]} Ke6 {[%emt 0:00:00]} 45. Nc4 {[%emt 0:01:09]} Ra2 {[%emt 0:00:00]} 46. Re3 {[%emt 0:00:37]} Bd5 {[%emt 0:00:00]} 47. Na5 {[%emt 0:00:23]} Rb2 {[%emt 0:00:00]} 48. f4 {[%emt 0:00:32]} Rxg2+ {[%emt 0:00:00]} 49. Kh4 {[%emt 0:00:04]} Kf5 {[%emt 0:00:00]} 50. fxe5 {[%emt 0:00:23]} dxe5 {[%emt 0:00:00]} 51. Nb3 {[%emt 0:01:03]} Nd6 {[%emt 0:00:00]} 52. Bc7 {[%emt 0:00:33]} Kf4 {[%emt 0:00:00]} 0-1

[Event "Paracin Open 2022"]
[Site "Paracin"]
[Date "2022.07.09"]
[Round "2.7"]
[White "Gundavaa, Bayarsaikhan"]
[Black "Ristic, Nenad"]
[Result "1/2-1/2"]
[ECO "B11"]
[WhiteElo "2503"]
[BlackElo "2293"]
[Annotator "TA"]
[PlyCount "49"]
[EventDate "2022.07.08"]
[EventCountry "SRB"]
[SourceTitle "playchess.com"]
[Source "ChessBase"]
[SourceQuality "1"]
[TimeControl "5400+30"]

{[%evp 10,49,12,22,24,18,44,22,37,22,25,16,35,0,20,0,0,0,0,-14,-11,-19,-18,-18,-16,-20,-4,-8,-8,-7,-7,-7,-7,-7,-7,-35,-30,-47,-46,-54,-32,-46]} 1. e4 {[%emt 0:00:31]} c6 {[%emt 0:00:19]} 2. Nc3 {[%emt 0:00:51]} d5 {[%emt 0:00:17]} 3. Nf3 {[%emt 0:00:04]} dxe4 {[%emt 0:00:27]} 4. Nxe4 {[%emt 0:00:05]} Nf6 {[%emt 0:00:22]} 5. Qe2 {[%emt 0:00:05]} Nxe4 {[%emt 0:00:21]} 6. Qxe4 {[%emt 0:00:06]} Qd5 {[%emt 0:01:56] B11: Caro-Kann: Two Knights Variation.} 7. Qf4 {[%emt 0:00:24]} Qd6 {[%emt 0:00:03]} 8. Qe3 {[%emt 0:13:05] [#]} ({Reject} 8. Ne5 f6 9. Nd3 Qxf4 10. Nxf4 e5 $15) 8... g6 $146 {[%emt 0:05:20] The position is equal.} ({Predecessor:} 8... Bf5 9. d3 Nd7 10. g3 Qe6 11. Bg2 Qxe3+ 12. Bxe3 e5 13. O-O-O Be7 14. d4 Be4 {1-0 (53) McShane,L (2655)-Harvey,M (2464) London 2021}) 9. Bc4 {[%emt 0:02:06] Threatens to win with Ng5.} Bg7 {[%emt 0:00:26]} 10. O-O {[%emt 0:00:34]} O-O {[%emt 0:04:09]} (10... c5 {is more complex.} 11. Ng5 O-O 12. d3 Nc6) 11. Re1 {[%emt 0:00:32]} b5 {[%emt 0:02:18]} 12. Bb3 {[%emt 0:05:40]} c5 $1 {[%emt 0:01:56] [#] Hoping for ...c4.} 13. d3 {[%emt 0:12:59] Inhibits c4.} ({Don't go for} 13. Qxe7 $2 Qxe7 14. Rxe7 c4 $19) 13... Nc6 {[%emt 0:02:33]} 14. Ng5 {[%emt 0:01:41]} Bf5 {[%emt 0:13:29]} 15. Ne4 {[%emt 0:06:26]} Bxe4 {[%emt 0:01:07]} 16. Qxe4 {[%emt 0:00:11]} e6 {[%emt 0:09:38]} 17. Bf4 {[%emt 0:02:27]} Qd7 {[%emt 0:03:45]} 18. c3 {[%emt 0:00:35]} a5 {[%emt 0:02:56] [#] White must now prevent ...a4.} 19. a4 {[%emt 0:06:09]} b4 {[%emt 0:01:31]} 20. Rac1 {[%emt 0:02:47]} bxc3 {[%emt 0:04:22]} 21. bxc3 {[%emt 0:00:05]} Ne7 {[%emt 0:00:28]} 22. Bc4 {[%emt 0:12:06]} Qxa4 {[%emt 0:04:30]} 23. Bd6 {[%emt 0:00:48]} Qd7 {[%emt 0:01:01]} 24. Bxc5 {[%emt 0:01:52]} Rfc8 {[%emt 0:00:35]} 25. d4 {[%emt 0:09:18] Weighted Error Value: White=0.10 (very precise) /Black=0.04 (flawless)} 1/2-1/2

[Event "Paracin Open 2022"]
[Site "Paracin"]
[Date "2022.07.09"]
[Round "2.8"]
[White "Zemlyanskii, Ivan"]
[Black "Arjun Kalyan"]
[Result "1/2-1/2"]
[ECO "D35"]
[WhiteElo "2269"]
[BlackElo "2499"]
[Annotator "TA"]
[PlyCount "136"]
[EventDate "2022.07.08"]
[EventCountry "SRB"]
[SourceTitle "playchess.com"]
[Source "ChessBase"]
[SourceQuality "1"]
[TimeControl "5400+30"]

{[%evp 9,136,20,29,33,25,29,28,20,17,26,30,31,30,30,30,30,39,33,70,35,40,30,51,44,41,30,29,36,66,65,59,8,10,22,18,18,9,12,48,0,2,0,0,0,17,0,0,0,0,0,0,0,0,0,0,0,0,0,0,0,8,8,8,8,8,0,33,35,29,29,126,126,685,134,134,0,0,0,134,8,8,0,0,0,0,0,0,0,0,0,0,0,0,0,0,0,0,0,0,0,0,0,0,0,0,0,0,0,0,0,0,0,0,0,0,0,0,0,0,0,0,0,0,0,0,0,0,0,0]} 1. d4 {[%emt 0:00:04]} Nf6 {[%emt 0:00:05]} 2. c4 {[%emt 0:00:07]} e6 {[%emt 0:00:05]} 3. Bf4 {[%emt 0:00:08]} d5 {[%emt 0:01:32]} 4. Nc3 {[%emt 0:00:20]} dxc4 {[%emt 0:05:12]} 5. e3 {[%emt 0:00:18]} Nd5 {[%emt 0:01:19][%cal Ob7b5]} 6. Bxc4 {[%emt 0:00:15] D35: Queen's Gambit Declined: Exchange Variation.} Nxf4 {[%emt 0:01:06]} 7. exf4 {[%emt 0:00:01]} Bd6 {[%emt 0:04:15]} 8. Qd2 {[%emt 0:05:31] [#] White has an edge.} a6 $146 {[%emt 0:03:01]} ({Predecessor:} 8... Nd7 9. Nf3 Nb6 10. Bb3 c6 11. O-O O-O 12. Rfe1 Nd5 13. Ne5 a5 14. a3 Nxc3 15. Qxc3 {0-1 (68) Loyfenfeld,Y (2422)-Rotstein,J (2210) Germany 2011}) 9. Nf3 {[%emt 0:02:47]} b5 {[%emt 0:00:48]} 10. Bd3 {[%emt 0:03:38]} Bb7 {[%emt 0:00:11]} 11. Be4 {[%emt 0:01:38]} Bxe4 {[%emt 0:02:46]} 12. Nxe4 {[%emt 0:00:02]} Nc6 {[%emt 0:00:46]} 13. O-O {[%emt 0:01:40]} O-O {[%emt 0:00:20]} 14. Rfd1 {[%emt 0:02:47]} Ne7 {[%emt 0:00:56]} 15. g3 {[%emt 0:01:29]} Nd5 {[%emt 0:04:50]} 16. Rac1 {[%emt 0:01:30]} h6 {[%emt 0:02:44]} 17. Qe2 {[%emt 0:10:59]} Qe8 {[%emt 0:03:45]} 18. Ne5 {[%emt 0:16:33]} Bxe5 {[%emt 0:14:07]} 19. dxe5 {[%emt 0:00:31]} Qe7 {[%emt 0:03:43]} 20. f5 {[%emt 0:03:28]} (20. Nc5 $14) 20... exf5 $11 {[%emt 0:01:22]} 21. Rxd5 {[%emt 0:00:14] aiming for Nc5.} fxe4 {[%emt 0:00:05]} 22. Qxe4 {[%emt 0:00:04]} Rad8 {[%emt 0:00:30]} 23. Rdc5 {[%emt 0:02:38]} Rd2 {[%emt 0:05:32]} (23... Rd1+ $5 24. Rxd1 Qxc5 $14) 24. R1c2 {[%emt 0:05:59]} (24. b4 $14) 24... Rxc2 {[%emt 0:02:30]} 25. Qxc2 {[%emt 0:00:05][%mdl 4096] Endgame KQR-KQR} Rd8 {[%emt 0:00:54]} 26. b4 {[%emt 0:01:42]} Rd7 {[%emt 0:05:39]} 27. a3 {[%emt 0:04:51]} (27. Qe4 {is interesting.} Rd1+ 28. Kg2 Qd7 29. Qa8+) 27... Qd8 {[%emt 0:06:13]} 28. Qe4 {[%emt 0:15:49]} Rd1+ {[%emt 0:08:05]} 29. Kg2 {[%emt 0:00:01]} Qd3 {[%emt 0:01:54]} 30. Qxd3 {[%emt 0:00:42]} Rxd3 {[%emt 0:00:02]} 31. Rxc7 {[%emt 0:00:11]} Rxa3 {[%emt 0:00:03] KR-KR} 32. Ra7 {[%emt 0:00:10]} g5 {[%emt 0:00:31]} 33. f4 {[%emt 0:01:52]} gxf4 {[%emt 0:03:43]} 34. gxf4 {[%emt 0:00:02]} Ra4 {[%emt 0:00:20]} 35. Kg3 {[%emt 0:00:24]} Rxb4 {[%emt 0:00:23]} 36. Rxa6 {[%emt 0:00:06]} Kg7 {[%emt 0:00:04]} 37. Rb6 {[%emt 0:00:31]} Rb3+ {[%emt 0:00:09]} 38. Kg4 {[%emt 0:00:13]} Rb2 {[%emt 0:00:49]} 39. h4 {[%emt 0:00:51]} b4 {[%emt 0:00:46]} (39... Rb4 $11 {keeps the balance.}) 40. Rb7 $1 $16 {[%emt 0:00:13] f5 is the strong threat.} Kg8 $2 {[%emt 0:00:06][%mdl 8192]} (40... b3 $16) 41. Kf5 $2 {[%emt 0:00:39]} (41. Kh5 $1 $18 {and the rest is easy.} Rc2 42. Kxh6 Rc6+ 43. Kg5 Rg6+ 44. Kh5) 41... b3 {[%emt 0:04:45] [#]} 42. Rb8+ {[%emt 0:00:35]} (42. h5 $1 $16) 42... Kg7 $11 {[%emt 0:00:05]} 43. Rb7 {[%emt 0:00:03]} ({White should try} 43. Rb5 $11) 43... Kg8 $1 $16 {[%emt 0:00:03] [#]} 44. Kf6 {[%emt 0:05:13]} (44. h5 $1 $16) 44... Rf2 $11 {[%emt 0:00:13] The position is equal.} 45. f5 {[%emt 0:00:20]} b2 {[%emt 0:00:05]} 46. Rb8+ {[%emt 0:02:46]} Kh7 {[%emt 0:00:02]} 47. Rb7 {[%emt 0:00:31]} Kg8 {[%emt 0:00:04]} 48. h5 {[%emt 0:00:49]} Re2 {[%emt 0:01:40]} 49. Rb6 {[%emt 0:06:25]} Rf2 {[%emt 0:00:32]} 50. e6 {[%emt 0:02:12]} fxe6 {[%emt 0:00:07]} 51. Kxe6 {[%emt 0:00:09]} Re2+ {[%emt 0:01:01]} 52. Kf6 {[%emt 0:00:11]} Rg2 {[%emt 0:00:41]} 53. Rb8+ $1 {[%emt 0:00:17]} Kh7 {[%emt 0:00:01]} 54. Ke6 {[%emt 0:00:55]} Re2+ {[%emt 0:00:09]} 55. Kf7 {[%emt 0:06:31]} Rc2 {[%emt 0:05:02]} 56. f6 $1 {[%emt 0:00:00]} Rc7+ {[%emt 0:01:12]} 57. Ke6 {[%emt 0:00:00]} Rc6+ {[%emt 0:00:03]} 58. Ke7 {[%emt 0:00:00]} Rc7+ {[%emt 0:00:02]} 59. Kd6 {[%emt 0:00:00]} Rc2 {[%emt 0:00:23]} 60. f7 {[%emt 0:00:00]} Rf2 {[%emt 0:01:55]} 61. Ke6 {[%emt 0:00:05]} Kg7 {[%emt 0:00:34]} 62. Rg8+ {[%emt 0:00:21]} Kh7 {[%emt 0:00:01]} 63. Rg1 {[%emt 0:00:45]} Re2+ {[%emt 0:00:09]} 64. Kd7 {[%emt 0:00:08]} Rd2+ {[%emt 0:00:07]} 65. Ke7 {[%emt 0:00:12]} Re2+ {[%emt 0:00:02]} 66. Kf8 {[%emt 0:00:14]} Kh8 {[%emt 0:00:20]} 67. Rg8+ {[%emt 0:00:14]} Kh7 {[%emt 0:00:00]} 68. Rg7+ {[%emt 0:00:08]} Kh8 {[%emt 0:00:01] Weighted Error Value: White=0.29 (precise) /Black=0.21 (precise)} 1/2-1/2

[Event "Paracin Open 2022"]
[Site "Paracin"]
[Date "2022.07.09"]
[Round "2.9"]
[White "Ibadov, Dashgyn"]
[Black "Makhnev, Denis"]
[Result "1-0"]
[ECO "D02"]
[WhiteElo "2262"]
[BlackElo "2492"]
[Annotator "RC"]
[PlyCount "41"]
[EventDate "2022.07.08"]
[EventCountry "SRB"]
[SourceTitle "playchess.com"]
[Source "ChessBase"]
[SourceQuality "1"]
[TimeControl "5400+30"]

1. d4 {[%emt 0:00:03]} Nf6 {[%emt 0:01:59]} 2. Nf3 {[%emt 0:00:07]} e6 {[%emt 0:00:11]} 3. Bf4 {[%emt 0:00:13]} d5 {[%emt 0:00:18]} 4. e3 {[%emt 0:00:15]} c5 {[%emt 0:00:13]} 5. c3 {[%emt 0:00:07]} Nc6 {[%emt 0:00:08]} 6. Nbd2 {[%emt 0:03:58]} Nh5 {[%emt 0:00:17]} 7. Bg5 {[%emt 0:01:18]} Qb6 {[%emt 0:00:14]} 8. Rb1 {[%emt 0:04:01]} h6 {[%emt 0:00:41]} 9. Bh4 {[%emt 0:00:05]} g5 {[%emt 0:00:34]} 10. Ne5 {[%emt 0:05:17]} Nf4 {[%emt 1:30:55]} 11. Nxc6 {[%emt 0:07:54]} bxc6 {[%emt 0:00:00]} 12. Bg3 {[%emt 0:00:08]} Ng6 {[%emt 0:00:00]} 13. Bd3 {[%emt 0:00:27]} Ba6 {[%emt 0:00:00]} 14. Qe2 {[%emt 0:04:11]} Bxd3 {[%emt 0:00:00]} 15. Qxd3 {[%emt 0:00:04]} Qb5 {[%emt 0:00:00]} 16. c4 {[%emt 0:06:21]} Qa6 {[%emt 0:00:00]} 17. O-O {[%emt 1:04:31]} Rd8 {[%emt 0:00:00]} 18. f4 {[%emt 0:00:00]} gxf4 {[%emt 0:00:00]} 19. exf4 {[%emt 0:00:00]} f5 {[%emt 0:00:00]} 20. Rbe1 {[%emt 0:00:00]} Kf7 {[%emt 0:00:00]} 21. Rxe6 {[%emt 0:00:00]} 1-0

[Event "Paracin Open 2022"]
[Site "Paracin"]
[Date "2022.07.09"]
[Round "2.10"]
[White "Koustav Chatterjee"]
[Black "Han, Yichen"]
[Result "1-0"]
[ECO "A11"]
[WhiteElo "2485"]
[BlackElo "2286"]
[Annotator "RC"]
[PlyCount "53"]
[EventDate "2022.07.08"]
[EventCountry "SRB"]
[SourceTitle "playchess.com"]
[Source "ChessBase"]
[SourceQuality "1"]
[TimeControl "5400+30"]

1. Nf3 {[%emt 0:01:32]} Nf6 {[%emt 0:01:08]} 2. c4 {[%emt 0:00:13]} c6 {[%emt 0:00:23]} 3. g3 {[%emt 0:02:58]} d5 {[%emt 0:00:24]} 4. Bg2 {[%emt 0:01:17]} dxc4 {[%emt 0:01:11]} 5. O-O {[%emt 0:01:57]} Nbd7 {[%emt 0:00:21]} 6. Na3 {[%emt 0:06:31]} Nb6 {[%emt 0:03:11]} 7. Ne5 {[%emt 0:07:58]} Be6 {[%emt 0:14:38]} 8. Qc2 {[%emt 0:00:19]} Qd4 {[%emt 0:05:52]} 9. Nxc6 {[%emt 0:02:08]} bxc6 {[%emt 0:20:11]} 10. Bxc6+ {[%emt 0:00:07]} Bd7 {[%emt 0:06:28]} 11. Bxa8 {[%emt 0:07:00]} Nxa8 {[%emt 0:00:05]} 12. Nxc4 {[%emt 0:07:27]} Nb6 {[%emt 0:04:26]} 13. d3 {[%emt 0:12:44]} Nxc4 {[%emt 0:06:43]} 14. dxc4 {[%emt 0:04:10]} e6 {[%emt 0:01:59]} 15. Be3 {[%emt 0:06:24]} Qg4 {[%emt 0:00:47]} 16. Rfd1 {[%emt 0:10:14]} Qh3 {[%emt 0:03:49]} 17. Qb3 {[%emt 0:05:39]} Be7 {[%emt 0:00:48]} 18. Rxd7 {[%emt 0:04:29]} Nxd7 {[%emt 0:01:35]} 19. Rd1 {[%emt 0:00:53]} f5 {[%emt 0:21:31]} 20. Qb5 {[%emt 0:07:20]} O-O {[%emt 0:00:24]} 21. Rxd7 {[%emt 0:00:45]} Bf6 {[%emt 0:01:36]} 22. c5 {[%emt 0:00:27]} g5 {[%emt 0:01:32]} 23. c6 {[%emt 0:02:39]} f4 {[%emt 0:00:32]} 24. Bc5 {[%emt 0:00:05]} Qf5 {[%emt 0:01:16]} 25. Qd3 {[%emt 0:00:11]} Qxd3 {[%emt 0:01:35]} 26. exd3 {[%emt 0:00:06]} Rc8 {[%emt 0:00:13]} 27. c7 {[%emt 0:00:05]} 1-0

[Event "Paracin Open 2022"]
[Site "Paracin"]
[Date "2022.07.09"]
[Round "2.11"]
[White "Suleymenov, Alisher"]
[Black "Sredojevic, Ivan"]
[Result "1-0"]
[ECO "D35"]
[WhiteElo "2467"]
[BlackElo "2254"]
[Annotator "RC"]
[PlyCount "55"]
[EventDate "2022.07.08"]
[EventCountry "SRB"]
[SourceTitle "playchess.com"]
[Source "ChessBase"]
[SourceQuality "1"]
[TimeControl "5400+30"]

1. d4 {[%emt 0:00:03]} Nf6 {[%emt 0:00:14]} 2. c4 {[%emt 0:00:06]} e6 {[%emt 0:00:03]} 3. Nc3 {[%emt 0:00:06]} d5 {[%emt 0:00:02]} 4. cxd5 {[%emt 0:00:06]} Nxd5 {[%emt 0:00:07]} 5. e4 {[%emt 0:00:11]} Nxc3 {[%emt 0:00:08]} 6. bxc3 {[%emt 0:00:03]} c5 {[%emt 0:00:01]} 7. Rb1 {[%emt 0:00:08]} cxd4 {[%emt 0:05:25]} 8. cxd4 {[%emt 0:01:02]} Be7 {[%emt 0:01:33]} 9. Nf3 {[%emt 0:02:32]} O-O {[%emt 0:00:18]} 10. Bc4 {[%emt 0:08:10]} Nc6 {[%emt 0:17:12]} 11. O-O {[%emt 0:00:32]} b6 {[%emt 0:00:06]} 12. a3 {[%emt 0:13:28]} Bb7 {[%emt 0:02:08]} 13. d5 {[%emt 0:00:19]} Na5 {[%emt 0:00:35]} 14. Ba2 {[%emt 0:00:07]} exd5 {[%emt 0:00:12]} 15. exd5 {[%emt 0:00:07]} Rc8 {[%emt 0:03:29]} 16. Qd3 {[%emt 0:01:47]} Bf6 {[%emt 0:14:59]} 17. Bd2 {[%emt 0:03:09]} Qd7 {[%emt 0:02:30]} 18. Rb4 {[%emt 0:10:28]} Rfe8 {[%emt 0:06:12]} 19. Rf4 {[%emt 0:04:55]} Qd6 {[%emt 0:09:51]} 20. g3 {[%emt 0:01:31]} Be5 {[%emt 0:10:20]} 21. Ng5 {[%emt 0:27:25]} Bxf4 {[%emt 0:07:52]} 22. Qxh7+ {[%emt 0:01:53]} Kf8 {[%emt 0:00:06]} 23. Bxf4 {[%emt 0:01:58]} Qg6 {[%emt 0:02:13]} 24. Qxg6 {[%emt 0:01:36]} fxg6 {[%emt 0:00:02]} 25. d6 {[%emt 0:00:12]} Re2 {[%emt 0:00:01]} 26. d7 {[%emt 0:00:50]} Rxa2 {[%emt 0:05:00]} 27. Bd6+ {[%emt 0:00:16]} Kg8 {[%emt 0:00:02]} 28. Re1 {[%emt 0:00:13]} 1-0